fUST/lending_fUST_20260430
["ID","MTS","AMOUNT","RATE_DAILY","PERIOD"]
[421365978,1777498232000,-228.64,0.000135,2]
[421365976,1777498232000,-98.87856089,0.00013231,2]
[421365974,1777498232000,-87.84594693,0.00013231,2]
[421365985,1777498232000,-1000.0,0.00013699,2]
[421365992,1777498232000,-300.0,0.00014015,2]
[421365996,1777498232000,-342.96,0.00014113,2]
[421366012,1777498232000,-7634.0636867,0.00014699,2]
[421365997,1777498232000,-200.0,0.00014197,2]
[421365998,1777498232000,-200.0,0.00014197,7]
[421366010,1777498232000,-500.0,0.00014698,2]
[421366008,1777498232000,-440.94428402,0.00014698,2]
[421366006,1777498232000,-216.10513454,0.00014698,2]
[421366007,1777498232000,-500.0,0.00014698,2]
[421366009,1777498232000,-500.0,0.00014698,2]
[421366011,1777498232000,-1960.1413432,0.00014698,2]
[421366005,1777498232000,-623.01679849,0.00014698,2]
[421366004,1777498232000,-500.0,0.00014698,2]
[421366002,1777498232000,-500.0,0.00014698,2]
[421365999,1777498232000,-400.12,0.00014419,2]
[421366001,1777498232000,-960.31177792,0.00014599,2]
[421366000,1777498232000,-334.986,0.00014419,2]
[421366003,1777498232000,-500.0,0.00014698,2]
[421366045,1777498240000,-300.18062377,0.00014699,2]
[421366044,1777498240000,-2654.55989871,0.00014699,2]
[421366063,1777498244000,-7963.80187317,0.00014699,2]
[421366064,1777498244000,-1420.0,0.00014699,2]
[421366097,1777498247000,-500.0,0.00014798,2]
[421366092,1777498247000,-500.0,0.00014798,2]
[421366096,1777498247000,-500.0,0.00014798,2]
[421366094,1777498247000,-500.0,0.00014798,2]
[421366095,1777498247000,-500.0,0.00014798,2]
[421366084,1777498247000,-500.0,0.00014798,2]
[421366088,1777498247000,-500.0,0.00014798,2]
[421366086,1777498247000,-500.0,0.00014798,2]
[421366082,1777498247000,-500.0,0.00014798,2]
[421366071,1777498247000,-631.0,0.00014699,2]
[421366078,1777498247000,-500.0,0.00014798,2]
[421366077,1777498247000,-500.0,0.00014798,2]
[421366076,1777498247000,-500.0,0.00014798,2]
[421366075,1777498247000,-500.0,0.00014798,2]
[421366074,1777498247000,-500.0,0.00014798,2]
[421366073,1777498247000,-500.0,0.00014798,2]
[421366072,1777498247000,-341.20760283,0.00014798,2]
[421366070,1777498247000,-31241.89699429,0.00014699,2]
[421366098,1777498247000,-500.0,0.00014798,2]
[421366090,1777498247000,-500.0,0.00014798,2]
[421366099,1777498247000,-500.0,0.00014798,2]
[421366080,1777498247000,-500.0,0.00014798,2]
[421366100,1777498247000,-500.0,0.00014798,2]
[421366121,1777498247000,-9568.4405962,0.00018998,2]
[421366118,1777498247000,-1960.14134319,0.0001757,2]
[421366119,1777498247000,-184.0,0.00017781,3]
[421366117,1777498247000,-472.30346232,0.00017299,2]
[421366111,1777498247000,-220.33491922,0.00015231,2]
[421366116,1777498247000,-253.94533063,0.00017231,2]
[421366115,1777498247000,-600.0,0.00016766,2]
[421366113,1777498247000,-1960.14134319,0.00016134,2]
[421366114,1777498247000,-193.1021351,0.00016234,2]
[421366112,1777498247000,-300.0,0.00015354,2]
[421366107,1777498247000,-306.57852432,0.000149,2]
[421366109,1777498247000,-472.30346233,0.000149,2]
[421366102,1777498247000,-299.60767609,0.00014798,2]
[421366108,1777498247000,-306.57852432,0.000149,2]
[421366106,1777498247000,-306.57852432,0.000149,2]
[421366105,1777498247000,-504.69287217,0.00014798,2]
[421366104,1777498247000,-500.0,0.00014798,2]
[421366101,1777498247000,-500.0,0.00014798,2]
[421366103,1777498247000,-500.0,0.00014798,2]
[421366110,1777498247000,-171.474658,0.00015068,2]
[421366120,1777498247000,-720.0,0.00018443,2]
[421366126,1777499271000,10000.0,0.00021918,120]
[421366127,1777499328000,10000.0,0.00021918,120]
[421366128,1777499344000,10000.0,0.00021918,120]
[421366150,1777499433000,-160.0,0.00013653,2]
[421366152,1777499433000,-211.75208351,0.00013656,2]
[421366151,1777499433000,-160.0,0.00013653,2]
[421366180,1777499441000,-816.89801612,0.00013699,2]
[421366182,1777499441000,-200.0,0.00014652,2]
[421366181,1777499441000,-183.10198388,0.00013699,2]
[421366183,1777499441000,-200.0,0.00014652,7]
[421366179,1777499441000,-183.10198388,0.00013664,2]
[421366189,1777499441000,-49.4297149,0.00014797,2]
[421366187,1777499441000,-500.0,0.00014698,2]
[421366184,1777499441000,-500.0,0.00014697,2]
[421366186,1777499441000,-300.0,0.00014697,2]
[421366188,1777499441000,-500.0,0.00014698,2]
[421366185,1777499441000,-1200.0,0.00014697,2]
[421366210,1777499445000,-615.0,0.00013664,2]
[421366244,1777499446000,-1631.10420904,0.00018697,2]
[421366240,1777499446000,-216.10513454,0.00018696,2]
[421366238,1777499446000,-500.0,0.00018628,2]
[421366235,1777499446000,-366.78,0.00018511,2]
[421366242,1777499446000,-142.47176958,0.00018697,2]
[421366239,1777499446000,-334.986,0.0001863,2]
[421366241,1777499446000,-500.0,0.00018696,2]
[421366237,1777499446000,-316.0951943,0.00018591,2]
[421366246,1777499446000,-1127.89999998,0.00018698,2]
[421366258,1777499446000,-234.00862551,0.00018997,2]
[421366248,1777499446000,-744.00654836,0.00018698,2]
[421366252,1777499446000,-500.0,0.00018696,2]
[421366253,1777499446000,-5846.58364891,0.00018698,2]
[421366254,1777499446000,-2907.01353904,0.00018798,2]
[421366257,1777499446000,-236.15173116,0.00018897,2]
[421366233,1777499446000,-2150.738,0.00018433,2]
[421366259,1777499446000,-500.0,0.00018997,2]
[421366261,1777499446000,-500.0,0.00018997,2]
[421366245,1777499446000,-8600.07297986,0.00018698,2]
[421366236,1777499446000,-185.9693377,0.00018587,2]
[421366226,1777499446000,-212.37,0.000176,2]
[421366229,1777499446000,-185.0,0.00018118,2]
[421366211,1777499446000,-450.5702851,0.00014797,2]
[421366213,1777499446000,-185.0,0.00015118,2]
[421366215,1777499446000,-185.9693377,0.00015468,2]
[421366212,1777499446000,-740.0,0.00015118,2]
[421366216,1777499446000,-316.0951943,0.00015468,2]
[421366214,1777499446000,-442.0,0.00015118,2]
[421366217,1777499446000,-213.749434,0.00015548,2]
[421366220,1777499446000,-200.84442125,0.00015638,2]
[421366218,1777499446000,-171.474658,0.00015637,2]
[421366231,1777499446000,-442.0,0.00018118,2]
[421366222,1777499446000,-300.0,0.0001609,2]
[421366221,1777499446000,-216.06034098,0.00015664,2]
[421366223,1777499446000,-1138.0,0.00016167,2]
[421366224,1777499446000,-209.59,0.00017331,2]
[421366260,1777499446000,-500.0,0.00018997,2]
[421366225,1777499446000,-212.37,0.000176,2]
[421366228,1777499446000,-261.98,0.00017724,2]
[421366227,1777499446000,-249.01869808,0.00017664,2]
[421366232,1777499446000,-314.38,0.00018118,2]
[421366230,1777499446000,-185.0,0.00018118,2]
[421366219,1777499446000,-799.15557875,0.00015638,2]
[421366256,1777499446000,-24372.27487052,0.00018798,2]
[421366255,1777499446000,-2909.32184437,0.00018798,2]
[421366265,1777499446000,-77262.23901368,0.00018998,2]
[421366297,1777499446000,-340.46,0.0001951,2]
[421366298,1777499446000,-240.572842,0.00019551,2]
[421366295,1777499446000,-168.87649341,0.000195,7]
[421366302,1777499446000,-160.0,0.000196,2]
[421366300,1777499446000,-1773.5759786,0.00019562,2]
[421366304,1777499446000,-2406.820793,0.000196,2]
[421366307,1777499446000,-156.17400829,0.00019631,60]
[421366306,1777499446000,-1000.0,0.0001962,5]
[421366305,1777499446000,-151.0,0.00019603,5]
[421366303,1777499446000,-1283.410396,0.000196,2]
[421366308,1777499446000,-1000.0,0.0001964,5]
[421366262,1777499446000,-500.0,0.00018997,2]
[421366310,1777499446000,-281.97705518,0.00019664,2]
[421366313,1777499446000,-1000.0,0.0001968,5]
[421366309,1777499446000,-1000.0,0.0001966,5]
[421366311,1777499446000,-822.0,0.0001968,2]
[421366315,1777499446000,-117209.90160444,0.000197,2]
[421366314,1777499446000,-1000.0,0.000197,5]
[421366316,1777499446000,-5000.0,0.000197,2]
[421366296,1777499446000,-168.87649341,0.000195,7]
[421366294,1777499446000,-168.87649341,0.000195,7]
[421366312,1777499446000,-822.0,0.0001968,2]
[421366281,1777499446000,-1269.88533713,0.00019413,60]
[421366285,1777499446000,-1269.88533713,0.00019445,60]
[421366264,1777499446000,-641.18242164,0.00018997,2]
[421366267,1777499446000,-1952.64702834,0.00019016,2]
[421366271,1777499446000,-300.0,0.00019178,2]
[421366263,1777499446000,-500.0,0.00018997,2]
[421366272,1777499446000,-151.5,0.00019377,2]
[421366266,1777499446000,-603.0,0.00019,2]
[421366268,1777499446000,-151.5,0.00019103,2]
[421366273,1777499446000,-600.0,0.00019377,2]
[421366275,1777499446000,-516.54375713,0.00019404,2]
[421366270,1777499446000,-325.5033175,0.0001911,2]
[421366274,1777499446000,-3285.56318371,0.00019403,2]
[421366293,1777499446000,-168.87649341,0.000195,7]
[421366286,1777499446000,-603.0,0.00019452,2]
[421366276,1777499446000,-500.0,0.00019404,2]
[421366291,1777499446000,-1000.0,0.000195,2]
[421366279,1777499446000,-500.0,0.00019413,2]
[421366289,1777499446000,-1269.88533713,0.00019476,60]
[421366277,1777499446000,-151.0,0.00019405,5]
[421366288,1777499446000,-538.45489944,0.00019471,2]
[421366283,1777499446000,-156.17400829,0.00019413,30]
[421366319,1777499447000,-695.1387042,0.000197,2]
[421366318,1777499447000,-7072.4317503,0.000197,2]
[421366317,1777499447000,-500.0,0.00018696,2]
[421366376,1777500632000,-229.26719835,0.00018071,2]
[421366380,1777500632000,-151.0,0.00018288,2]
[421366383,1777500632000,-162.380719,0.0001847,2]
[421366378,1777500632000,-442.0,0.00018188,2]
[421366387,1777500632000,-537.6845,0.0001847,2]
[421366381,1777500632000,-300.0,0.00018469,2]
[421366385,1777500632000,-151.0,0.0001847,2]
[421366397,1777500632000,-1459.99887719,0.0001847,2]
[421366360,1777500632000,-198.92301034,0.00016071,2]
[421366393,1777500632000,-537.6845,0.0001847,2]
[421366395,1777500632000,-690.73912281,0.0001847,2]
[421366374,1777500632000,-220.07,0.00017987,2]
[421366350,1777500632000,-168.57882232,0.00014071,2]
[421366372,1777500632000,-189.0,0.00017781,3]
[421366355,1777500632000,-160.0,0.00015497,2]
[421366354,1777500632000,-160.0,0.00015497,2]
[421366352,1777500632000,-442.0,0.00015188,2]
[421366370,1777500632000,-171.17,0.00017251,2]
[421366368,1777500632000,-1000.0,0.00016875,2]
[421366361,1777500632000,-213.749435,0.00016864,2]
[421366363,1777500632000,-9728.34969605,0.00016875,2]
[421366366,1777500632000,-332.63997697,0.00016875,2]
[421366346,1777500632000,-1000.0,0.00013699,2]
[421366391,1777500632000,-162.380719,0.0001847,2]
[421366357,1777500632000,-150.0,0.00016,2]
[421366348,1777500632000,-615.0,0.00013699,2]
[421366399,1777500632000,-151.0,0.0001847,2]
[421366400,1777500632000,-425.0644206,0.00018525,2]
[421366389,1777500632000,-445.202766,0.0001847,2]
[421366445,1777500632000,-152.0,0.00018702,7]
[421366446,1777500632000,-5648.3032233,0.000188,2]
[421366444,1777500632000,-1456.98534408,0.000187,2]
[421366442,1777500632000,-279.49,0.00018697,2]
[421366429,1777500632000,-500.0,0.00018697,2]
[421366431,1777500632000,-500.0,0.00018697,2]
[421366427,1777500632000,-500.0,0.00018697,2]
[421366436,1777500632000,-500.0,0.00018697,2]
[421366440,1777500632000,-500.0,0.00018697,2]
[421366422,1777500632000,-500.0,0.00018697,2]
[421366434,1777500632000,-500.0,0.00018697,2]
[421366438,1777500632000,-500.0,0.00018697,2]
[421366423,1777500632000,-500.0,0.00018697,2]
[421366401,1777500632000,-800.0,0.000186,60]
[421366411,1777500632000,-601.04920447,0.00018696,2]
[421366416,1777500632000,-500.0,0.00018697,2]
[421366425,1777500632000,-500.0,0.00018697,2]
[421366404,1777500632000,-152.0,0.00018626,7]
[421366418,1777500632000,-500.0,0.00018697,2]
[421366414,1777500632000,-500.0,0.00018697,2]
[421366409,1777500632000,-500.0,0.00018696,2]
[421366408,1777500632000,-267.988,0.00018696,2]
[421366413,1777500632000,-500.0,0.00018697,2]
[421366420,1777500632000,-500.0,0.00018697,2]
[421366406,1777500632000,-500.0,0.00018695,2]
[421366454,1777500633000,-1029.68947037,0.00019298,2]
[421366447,1777500633000,-432.2997912,0.000188,2]
[421366455,1777500633000,-1268.43135222,0.00019306,2]
[421366450,1777500633000,-151.0,0.00019089,2]
[421366448,1777500633000,-371.9386755,0.000188,2]
[421366449,1777500633000,-325.3125918,0.00019089,2]
[421366451,1777500633000,-151.0,0.00019089,2]
[421366456,1777500633000,-280.15912496,0.00019404,2]
[421366462,1777500633000,-11400.1,0.0001962,2]
[421366452,1777500633000,-1911.93014166,0.00019195,3]
[421366458,1777500633000,-1456.98534406,0.00019566,2]
[421366460,1777500633000,-196.7931093,0.0001962,2]
[421366457,1777500633000,-884.42301455,0.00019523,2]
[421366461,1777500633000,-46112.5110288,0.0001962,2]
[421366459,1777500633000,-6467.0,0.00019618,2]
[421366453,1777500633000,-257.0,0.000192,2]
[421366538,1777500639000,-1000.0,0.000197,5]
[421366526,1777500639000,-196.7931093,0.00019623,2]
[421366518,1777500639000,-185.0,0.00018188,2]
[421366536,1777500639000,-1565.015331,0.0001968,5]
[421366524,1777500639000,-246533.96066648,0.0001962,2]
[421366540,1777500639000,-500.0,0.00019719,2]
[421366522,1777500639000,-30912.99853614,0.0001962,2]
[421366516,1777500639000,-185.0,0.00015188,2]
[421366520,1777500639000,-845.62090148,0.00019306,2]
[421366528,1777500639000,-196.0,0.00019626,2]
[421366542,1777500639000,-500.0,0.00019719,2]
[421366544,1777500639000,-500.0,0.00019719,2]
[421366534,1777500639000,-1364.67385521,0.00019646,2]
[421366532,1777500639000,-196.7931093,0.00019626,2]
[421366548,1777500639000,-198.82769514,0.00019719,2]
[421366546,1777500639000,-500.0,0.00019719,2]
[421366550,1777500639000,-1000.0,0.0001972,5]
[421366552,1777500639000,-273385.179395,0.0001972,2]
[421366530,1777500639000,-197.35058863,0.00019626,2]
[421367024,1777501545000,9590.0,0.000219,120]
[421367043,1777501831000,-128.5929678,0.0001636,2]
[421367042,1777501831000,-194.77714357,0.00016032,2]
[421367040,1777501831000,-1000.0,0.00013699,2]
[421367041,1777501831000,-414.0,0.00013699,2]
[421367049,1777501832000,-2150.738,0.00018547,2]
[421367053,1777501832000,-300.0,0.00019299,2]
[421367047,1777501832000,-224.48891123,0.00018032,2]
[421367046,1777501832000,-157.0,0.00017781,3]
[421367054,1777501832000,-661.40919239,0.000193,2]
[421367044,1777501832000,-87.5550322,0.0001636,2]
[421367048,1777501832000,-171.4746582,0.00018509,2]
[421367051,1777501832000,-160.0,0.00018955,2]
[421367052,1777501832000,-248.32423,0.00019089,2]
[421367055,1777501832000,-531.89393827,0.000193,2]
[421367056,1777501832000,-456.15284782,0.000193,2]
[421367050,1777501832000,-160.0,0.00018955,2]
[421367096,1777501838000,-942.04615607,0.00019746,2]
[421367095,1777501838000,-214.391,0.00019746,2]
[421367094,1777501838000,-1000.0,0.0001974,5]
[421367093,1777501838000,-603.0,0.00019726,2]
[421367092,1777501838000,-152.0,0.00019722,7]
[421367091,1777501838000,-152.0,0.00019722,7]
[421367079,1777501838000,-500.0,0.00019699,2]
[421367082,1777501838000,-400.20993109,0.00019699,2]
[421367086,1777501838000,-789.40235444,0.00019701,2]
[421367078,1777501838000,-358.90755388,0.00019699,2]
[421367084,1777501838000,-23619.35652742,0.000197,2]
[421367081,1777501838000,-500.0,0.00019699,2]
[421367083,1777501838000,-177.11379837,0.000197,2]
[421367080,1777501838000,-500.0,0.00019699,2]
[421367097,1777501838000,-1395.45698191,0.00019746,2]
[421367090,1777501838000,-500.0,0.0001972,2]
[421367076,1777501838000,-500.0,0.00019699,2]
[421367098,1777501838000,-1000.0,0.0001976,5]
[421367063,1777501838000,-442.0,0.0001636,2]
[421367064,1777501838000,-598.00402032,0.00019089,2]
[421367068,1777501838000,-442.0,0.0001936,2]
[421367065,1777501838000,-8181.55380051,0.000193,2]
[421367071,1777501838000,-3198.4722007,0.00019584,2]
[421367066,1777501838000,-563.74726766,0.00019326,2]
[421367067,1777501838000,-185.0,0.0001936,2]
[421367074,1777501838000,-500.0,0.00019699,2]
[421367073,1777501838000,-500.0,0.00019619,2]
[421367069,1777501838000,-4114.63912359,0.00019404,2]
[421367072,1777501838000,-432.2997912,0.00019584,2]
[421367070,1777501838000,-632.1903886,0.00019584,2]
[421367075,1777501838000,-500.0,0.00019699,2]
[421367077,1777501838000,-500.0,0.00019699,2]
[421367087,1777501838000,-177.11379837,0.00019701,2]
[421367088,1777501838000,-167.0,0.0001971,2]
[421367089,1777501838000,-500.0,0.00019716,2]
[421367099,1777501838000,-1539.009199,0.0001976,5]
[421367100,1777501838000,-151.0,0.00019767,2]
[421367125,1777501838000,-136.847967,0.00019798,2]
[421367118,1777501838000,-1190.50101532,0.00019798,2]
[421367119,1777501838000,-1190.50101532,0.00019798,2]
[421367120,1777501838000,-539.1793866,0.00019798,2]
[421367121,1777501838000,-1190.50101532,0.00019798,2]
[421367117,1777501838000,-1190.50101532,0.00019798,2]
[421367101,1777501838000,-162.380719,0.00019767,2]
[421367127,1777501838000,-1190.50101532,0.00019798,2]
[421367128,1777501838000,-1190.50101532,0.00019798,2]
[421367129,1777501838000,-847.0,0.000198,7]
[421367130,1777501838000,-1000.0,0.000198,5]
[421367131,1777501838000,-1000.0,0.000198,5]
[421367132,1777501838000,-414215.76815701,0.000198,2]
[421367134,1777501838000,-14927.80248185,0.000198,2]
[421367133,1777501838000,-38846.73770719,0.000198,2]
[421367126,1777501838000,-1190.50101532,0.00019798,2]
[421367116,1777501838000,-500.0,0.00019798,2]
[421367124,1777501838000,-1053.65304832,0.00019798,2]
[421367109,1777501838000,-289.98421489,0.00019798,2]
[421367110,1777501838000,-1190.50101532,0.00019798,2]
[421367111,1777501838000,-500.0,0.00019798,2]
[421367112,1777501838000,-1190.50101532,0.00019798,2]
[421367107,1777501838000,-1000.0,0.0001978,5]
[421367115,1777501838000,-1190.50101532,0.00019798,2]
[421367113,1777501838000,-1190.50101532,0.00019798,2]
[421367104,1777501838000,-537.6845,0.00019767,2]
[421367103,1777501838000,-162.380719,0.00019767,2]
[421367102,1777501838000,-445.202766,0.00019767,2]
[421367105,1777501838000,-152.0,0.00019769,7]
[421367106,1777501838000,-1000.0,0.0001978,5]
[421367114,1777501838000,-1190.50101532,0.00019798,2]
[421367123,1777501838000,-1190.50101532,0.00019798,2]
[421367122,1777501838000,-1190.50101532,0.00019798,2]
[421367108,1777501838000,-600.0,0.00019791,2]
[421367140,1777501840000,-475.5589574,0.000198,2]
[421367238,1777501843000,-375.83151177,0.00019326,2]
[421367242,1777501843000,-26064.12341471,0.000198,2]
[421367236,1777501843000,-172.0,0.00017781,3]
[421367247,1777501843000,-1149.210458,0.000198,2]
[421367256,1777501843000,-6264.6768635,0.000198,2]
[421367240,1777501843000,-2395.57092987,0.000198,2]
[421367253,1777501843000,-3928.60947472,0.000198,2]
[421367245,1777501843000,-5029.77788828,0.000198,2]
[421367249,1777501843000,-8545.19668423,0.000198,2]
[421367365,1777501846000,-761.00872505,0.000198,2]
[421367397,1777501846000,-571.14,0.00019949,2]
[421367391,1777501846000,-1000.0,0.0001992,5]
[421367393,1777501846000,-500.0,0.00019939,2]
[421367398,1777501846000,-21611.77902004,0.0001995,3]
[421367402,1777501846000,-151.0,0.0001995,2]
[421367392,1777501846000,-1000.0,0.0001992,5]
[421367384,1777501846000,-1000.0,0.0001988,5]
[421367389,1777501846000,-6760.70400312,0.000199,2]
[421367387,1777501846000,-1000.0,0.000199,5]
[421367383,1777501846000,-1000.0,0.0001988,5]
[421367390,1777501846000,-151.0,0.00019911,2]
[421367382,1777501846000,-44817.65,0.0001988,7]
[421367386,1777501846000,-3944.81959076,0.000199,7]
[421367388,1777501846000,-1000.0,0.000199,5]
[421367385,1777501846000,-2574.1,0.000199,2]
[421367380,1777501846000,-1000.0,0.0001986,5]
[421367378,1777501846000,-500.0,0.00019859,2]
[421367381,1777501846000,-48823.98698795,0.0001988,2]
[421367373,1777501846000,-500.0,0.00019819,2]
[421367374,1777501846000,-1000.0,0.0001982,5]
[421367377,1777501846000,-1000.0,0.0001984,5]
[421367376,1777501846000,-1000.0,0.0001984,5]
[421367375,1777501846000,-1000.0,0.0001982,5]
[421367372,1777501846000,-151.0,0.00019802,5]
[421367370,1777501846000,-300.0,0.000198,3]
[421367371,1777501846000,-300.0,0.00019801,2]
[421367369,1777501846000,-127663.54327619,0.000198,2]
[421367363,1777501846000,-250.55434118,0.00019767,2]
[421367394,1777501846000,-500.0,0.00019939,2]
[421367379,1777501846000,-1000.0,0.0001986,5]
[421367401,1777501846000,-151.0,0.0001995,2]
[421367396,1777501846000,-1000.0,0.0001994,5]
[421367432,1777501846000,-500.0,0.00019999,2]
[421367430,1777501846000,-1000.0,0.00019999,4]
[421367431,1777501846000,-1000.0,0.00019999,10]
[421367426,1777501846000,-1000.0,0.0001998,5]
[421367422,1777501846000,-500.0,0.00019973,2]
[421367425,1777501846000,-500.0,0.00019973,2]
[421367423,1777501846000,-275.73430972,0.00019973,2]
[421367427,1777501846000,-1000.0,0.0001998,5]
[421367429,1777501846000,-500.0,0.00019998,2]
[421367428,1777501846000,-500.0,0.00019998,2]
[421367424,1777501846000,-500.0,0.00019973,2]
[421367420,1777501846000,-500.0,0.00019973,2]
[421367421,1777501846000,-500.0,0.00019973,2]
[421367400,1777501846000,-151.0,0.0001995,2]
[421367417,1777501846000,-1000.0,0.0001996,5]
[421367418,1777501846000,-1000.0,0.0001996,5]
[421367410,1777501846000,-328.112188,0.0001995,2]
[421367399,1777501846000,-151.0,0.0001995,2]
[421367395,1777501846000,-1000.0,0.0001994,5]
[421367406,1777501846000,-151.0,0.0001995,2]
[421367404,1777501846000,-151.0,0.0001995,2]
[421367414,1777501846000,-151.0,0.0001995,2]
[421367419,1777501846000,-500.0,0.00019973,2]
[421367415,1777501846000,-328.112188,0.0001995,2]
[421367416,1777501846000,-151.0,0.0001995,2]
[421367403,1777501846000,-151.0,0.0001995,2]
[421367413,1777501846000,-328.112188,0.0001995,2]
[421367405,1777501846000,-151.0,0.0001995,2]
[421367412,1777501846000,-151.0,0.0001995,2]
[421367408,1777501846000,-151.0,0.0001995,2]
[421367407,1777501846000,-328.112188,0.0001995,2]
[421367434,1777501847000,-508.79060187,0.00019999,2]
[421367436,1777501847000,-2000.0,0.0002,7]
[421367439,1777501847000,-120725.088642,0.0002,2]
[421367435,1777501847000,-603.0,0.0002,2]
[421367437,1777501847000,-601.0,0.0002,2]
[421367440,1777501847000,-50319.79041549,0.0002,2]
[421367438,1777501847000,-150.0,0.0002,2]
[421367433,1777501847000,-500.0,0.00019999,2]
[421367441,1777502107000,198.0,0.00019323,120]
[421367442,1777502108000,198.0,0.00020289,120]
[421367443,1777502109000,198.0,0.00021304,120]
[421367444,1777502130000,161.0,0.00018362,120]
[421367445,1777502131000,161.0,0.0001928,120]
[421367446,1777502132000,161.0,0.00020244,120]
[421367447,1777502133000,161.0,0.00021256,120]
[421367449,1777502755000,13653.47853116,0.00021,120]
[421367485,1777503032000,-151.0,0.00018886,2]
[421367488,1777503032000,-445.202766,0.00018886,2]
[421367487,1777503032000,-537.6845,0.00018886,2]
[421367486,1777503032000,-289.54178116,0.00018886,2]
[421367489,1777503032000,-2150.738,0.00018886,2]
[421367494,1777503032000,-577.42557062,0.00018894,2]
[421367492,1777503032000,-500.0,0.00018894,2]
[421367490,1777503032000,-2023.90050164,0.00018894,2]
[421367491,1777503032000,-202.98895042,0.00018894,2]
[421367483,1777503032000,-1863.88638209,0.00018797,2]
[421367495,1777503032000,-2023.90050164,0.00018894,2]
[421367484,1777503032000,-162.380719,0.00018886,2]
[421367477,1777503032000,-300.0,0.00018433,2]
[421367479,1777503032000,-5000.0,0.00018434,2]
[421367482,1777503032000,-160.0,0.00018686,2]
[421367478,1777503032000,-5000.0,0.00018434,2]
[421367481,1777503032000,-160.0,0.00018686,2]
[421367493,1777503032000,-2023.90050164,0.00018894,2]
[421367475,1777503032000,-155.0,0.00017808,3]
[421367474,1777503032000,-1000.0,0.00017335,2]
[421367473,1777503032000,-333.862,0.00017021,2]
[421367476,1777503032000,-229.73127454,0.00018114,2]
[421367472,1777503032000,-199.32566468,0.00016114,2]
[421367470,1777503032000,-623.10596476,0.00013699,2]
[421367471,1777503032000,-168.92005481,0.00014114,2]
[421367469,1777503032000,-376.89403524,0.00013699,2]
[421367480,1777503032000,-5000.0,0.00018434,2]
[421367497,1777503032000,-2023.90050164,0.00018894,2]
[421367499,1777503032000,-2023.90050164,0.00018894,2]
[421367498,1777503032000,-2023.90050164,0.00018894,2]
[421367524,1777503032000,-522.80967696,0.00018894,2]
[421367525,1777503032000,-1626.20060785,0.00018894,2]
[421367523,1777503032000,-292.51834732,0.00018894,2]
[421367522,1777503032000,-1337.36614563,0.00018894,2]
[421367519,1777503032000,-1402.19506844,0.00018894,2]
[421367520,1777503032000,-750.49910147,0.00018894,2]
[421367517,1777503032000,-2152.69416991,0.00018894,2]
[421367518,1777503032000,-2152.69416991,0.00018894,2]
[421367521,1777503032000,-2152.69416991,0.00018894,2]
[421367515,1777503032000,-2152.69416991,0.00018894,2]
[421367516,1777503032000,-2152.69416991,0.00018894,2]
[421367496,1777503032000,-2023.90050164,0.00018894,2]
[421367514,1777503032000,-2152.69416991,0.00018894,2]
[421367513,1777503032000,-2152.69416991,0.00018894,2]
[421367510,1777503032000,-2023.90050164,0.00018894,2]
[421367500,1777503032000,-2023.90050164,0.00018894,2]
[421367501,1777503032000,-2023.90050164,0.00018894,2]
[421367502,1777503032000,-2023.90050164,0.00018894,2]
[421367511,1777503032000,-2023.90050164,0.00018894,2]
[421367506,1777503032000,-295.04198622,0.00018894,2]
[421367505,1777503032000,-500.0,0.00018894,2]
[421367508,1777503032000,-2023.90050164,0.00018894,2]